[Event "Centenario Panaderia Pulido 2023"]
[Site "San Mateo Gran Canaria"]
[Date "2023.12.04"]
[Round "1.13"]
[White "Macias Reyes, Jose Luis"]
[Black "Doluhanova, Evgeniya"]
[Result "0-1"]
[ECO "D02"]
[WhiteElo "1459"]
[BlackElo "2177"]
[Annotator "RC"]
[PlyCount "70"]
[EventDate "2023.12.04"]
[EventType "swiss"]
[EventCountry "ESP"]
[SourceTitle "playchess.com"]
[Source "ChessBase"]
[SourceQuality "1"]
[TimeControl "5400+30"]

1. d4 {[%emt 0:00:30]} Nf6 {[%emt 1:20:38]} 2. Bf4 {[%emt 0:00:17]} e6 {[%emt 0:00:06]} 3. Nf3 {[%emt 0:00:36]} c5 {[%emt 0:00:33]} 4. e3 {[%emt 0:00:52]} Nc6 {[%emt 0:00:28]} 5. Nbd2 {[%emt 0:01:29]} d5 {[%emt 0:00:06]} 6. c3 {[%emt 0:00:30]} Nh5 {[%emt 0:00:12]} 7. Bg5 {[%emt 0:00:54]} f6 {[%emt 0:00:04]} 8. Bh4 {[%emt 0:01:06]} g6 {[%emt 0:00:04]} 9. Be2 {[%emt 0:01:26]} Ng7 {[%emt 0:00:14]} 10. Bd3 {[%emt 0:03:43]} Bd7 {[%emt 0:00:36]} 11. O-O {[%emt 0:03:02]} Be7 {[%emt 0:00:08]} 12. dxc5 {[%emt 0:01:04]} Bxc5 {[%emt 0:00:39]} 13. e4 {[%emt 0:01:22]} dxe4 {[%emt 0:02:12]} 14. Nxe4 {[%emt 0:01:27]} Be7 {[%emt 0:00:18]} 15. Bc2 {[%emt 0:05:01]} O-O {[%emt 0:00:44]} 16. Bg3 {[%emt 0:06:10]} Nf5 {[%emt 0:00:52]} 17. h3 {[%emt 0:02:33]} Nxg3 {[%emt 0:00:34]} 18. Nxg3 {[%emt 0:00:02]} Qc7 {[%emt 0:00:30]} 19. Qe2 {[%emt 0:01:26]} Kg7 {[%emt 0:01:09]} 20. Rfe1 {[%emt 0:01:45]} f5 {[%emt 0:01:44]} 21. Bb3 {[%emt 0:04:07]} Rae8 {[%emt 0:01:59]} 22. Rad1 {[%emt 0:03:53]} Bc5 {[%emt 0:02:13]} 23. Ne5 {[%emt 0:03:05]} Bc8 {[%emt 0:00:41]} 24. Kh1 {[%emt 0:07:07]} Nxe5 {[%emt 0:00:30]} 25. Qxe5+ {[%emt 0:00:12]} Qxe5 {[%emt 0:00:05]} 26. Rxe5 {[%emt 0:00:26]} Bxf2 {[%emt 0:00:16]} 27. Ne2 {[%emt 0:00:29]} Kf6 {[%emt 0:00:12]} 28. Rb5 {[%emt 0:01:42]} Rd8 {[%emt 0:00:18]} 29. Nd4 {[%emt 0:06:35]} e5 {[%emt 0:00:54]} 30. Nf3 {[%emt 0:00:44]} Rxd1+ {[%emt 0:00:11]} 31. Bxd1 {[%emt 0:00:07]} Rd8 {[%emt 0:00:21]} 32. Bb3 {[%emt 0:01:38]} e4 {[%emt 0:00:21]} 33. Nd4 {[%emt 0:01:44]} Bxd4 {[%emt 0:00:07]} 34. cxd4 {[%emt 0:00:05]} Rxd4 {[%emt 0:00:05]} 35. Rc5 {[%emt 0:00:11]} Be6 {[%emt 0:00:21]} 0-1

[Event "Centenario Panaderia Pulido 2023"]
[Site "San Mateo Gran Canaria"]
[Date "2023.12.04"]
[Round "1.14"]
[White "Mamani Beltran, Deniman"]
[Black "Mesa Rodriguez, Antonio"]
[Result "1-0"]
[ECO "B20"]
[WhiteElo "2151"]
[BlackElo "1384"]
[Annotator "ChessBase"]
[PlyCount "41"]
[EventDate "2023.12.04"]
[EventType "swiss"]
[EventCountry "ESP"]
[SourceTitle "playchess.com"]
[Source "ChessBase"]
[SourceQuality "1"]
[TimeControl "5400+30"]

1. e4 {[%emt 0:00:08]} c5 {[%emt 0:00:09]} 2. b3 {[%emt 0:00:12]} d6 {[%emt 0:00:18]} 3. d4 {[%emt 0:00:32]} cxd4 {[%emt 0:00:06]} 4. Qxd4 {[%emt 0:00:04]} Nc6 {[%emt 0:00:15]} 5. Qd2 {[%emt 0:00:04]} Nf6 {[%emt 0:00:19]} 6. Nc3 {[%emt 0:00:05]} e5 {[%emt 0:01:15]} 7. Bb2 {[%emt 0:00:26]} Be7 {[%emt 0:00:20]} 8. O-O-O {[%emt 0:00:28]} Be6 {[%emt 0:08:45]} 9. Kb1 {[%emt 0:01:17]} O-O {[%emt 0:04:20]} 10. f4 {[%emt 0:03:16]} exf4 {[%emt 0:11:06]} 11. Qxf4 {[%emt 0:00:10]} Qa5 {[%emt 1:09:07]} 12. Nf3 {[%emt 0:02:38]} Rfd8 {[%emt 0:00:00]} 13. g4 {[%emt 0:02:21]} Nxg4 {[%emt 0:00:00]} 14. Nd5 {[%emt 0:00:50]} Bf8 {[%emt 0:00:00]} 15. Rg1 {[%emt 0:00:22]} Nge5 {[%emt 0:00:00]} 16. Nf6+ {[%emt 0:00:42]} Kh8 {[%emt 0:00:00]} 17. Qh4 {[%emt 0:00:07]} Qxa2+ {[%emt 0:00:00]} 18. Kxa2 {[%emt 0:00:07]} Nb4+ {[%emt 0:03:30]} 19. Kb1 {[%emt 0:00:04]} h6 {[%emt 0:00:00]} 20. Qxh6+ {[%emt 0:00:07]} gxh6 {[%emt 0:00:00]} 21. Rg8# {[%emt 0:00:05]} 1-0

[Event "Centenario Panaderia Pulido 2023"]
[Site "San Mateo Gran Canaria"]
[Date "2023.12.04"]
[Round "1.15"]
[White "Monteiro Rodrigues, Carlos"]
[Black "Moreno Diepa, Diego"]
[Result "0-1"]
[ECO "C14"]
[WhiteElo "1366"]
[BlackElo "2138"]
[Annotator "ChessBase"]
[PlyCount "76"]
[EventDate "2023.12.04"]
[EventType "swiss"]
[EventCountry "ESP"]
[SourceTitle "playchess.com"]
[Source "ChessBase"]
[SourceQuality "1"]
[TimeControl "5400+30"]

1. e4 {[%emt 0:00:16]} e6 {[%emt 0:00:06]} 2. d4 {[%emt 0:00:31]} d5 {[%emt 0:00:06]} 3. Nc3 {[%emt 0:00:25]} Nf6 {[%emt 0:00:06]} 4. Bg5 {[%emt 0:01:13]} Be7 {[%emt 0:00:19]} 5. e5 {[%emt 0:01:13]} Nfd7 {[%emt 0:00:06]} 6. Bxe7 {[%emt 0:00:55]} Qxe7 {[%emt 1:32:47]} 7. Nf3 {[%emt 1:29:27]} a6 {[%emt 0:00:30]} 8. a3 {[%emt 0:00:00]} c5 {[%emt 0:00:30]} 9. Bd3 {[%emt 0:00:00]} cxd4 {[%emt 0:00:00]} 10. Ne2 {[%emt 0:00:00]} Nc6 {[%emt 0:00:00]} 11. O-O {[%emt 0:00:00]} Ndxe5 {[%emt 0:00:00]} 12. Re1 {[%emt 0:00:00]} Nxd3 {[%emt 0:00:00]} 13. Qxd3 {[%emt 0:00:00]} O-O {[%emt 0:00:00]} 14. Nfxd4 {[%emt 0:00:00]} Nxd4 15. Nxd4 {[%emt 0:00:00]} Qf6 {[%emt 0:00:00]} 16. Nf3 {[%emt 0:00:00]} Qg6 {[%emt 0:00:00]} 17. Qd2 {[%emt 0:00:00]} f6 {[%emt 0:00:00]} 18. Re3 {[%emt 0:00:00]} Qf7 {[%emt 0:00:00]} 19. c3 {[%emt 0:00:00]} e5 {[%emt 0:00:00]} 20. Nh4 {[%emt 0:00:00]} Be6 {[%emt 0:00:00]} 21. Rg3 {[%emt 0:07:00]} Qh5 {[%emt 0:06:30]} 22. Nf3 {[%emt 0:00:00]} Rad8 {[%emt 0:00:00]} 23. Re1 {[%emt 0:00:00]} Rfe8 {[%emt 0:01:00]} 24. Qe3 {[%emt 0:00:00]} Bf5 {[%emt 0:00:30]} 25. Qb6 {[%emt 0:00:00]} Qf7 {[%emt 0:00:00]} 26. Nh4 {[%emt 0:00:00]} Bg6 {[%emt 0:00:00]} 27. Nxg6 {[%emt 0:00:00]} hxg6 {[%emt 0:00:00]} 28. Rh3 {[%emt 0:00:00]} d4 {[%emt 0:00:00]} 29. Qb4 {[%emt 0:00:00]} a5 {[%emt 0:00:00]} 30. Qxa5 {[%emt 0:00:00]} d3 {[%emt 0:00:00]} 31. Qa4 {[%emt 0:00:00]} e4 {[%emt 0:00:00]} 32. Qd1 {[%emt 0:00:00]} f5 {[%emt 0:00:00]} 33. Qd2 {[%emt 0:00:00]} f4 {[%emt 0:00:00]} 34. Rf1 {[%emt 0:00:00]} e3 {[%emt 0:00:00]} 35. fxe3 {[%emt 0:00:00]} fxe3 {[%emt 0:00:00]} 36. Rxe3 {[%emt 0:00:00]} Qxf1+ {[%emt 0:00:00]} 37. Kxf1 {[%emt 0:08:00]} Rxe3 {[%emt 0:06:30]} 38. Qxe3 {[%emt 0:00:00]} d2 {[%emt 0:00:30]} 0-1

[Event "Centenario Panaderia Pulido 2023"]
[Site "San Mateo Gran Canaria"]
[Date "2023.12.05"]
[Round "2.1"]
[White "Korneev, Oleg"]
[Black "Marrero Cardenes, Agustin"]
[Result "1-0"]
[ECO "B10"]
[WhiteElo "2470"]
[BlackElo "2106"]
[Annotator "RC"]
[PlyCount "158"]
[EventDate "2023.12.04"]
[EventType "swiss"]
[EventCountry "ESP"]
[SourceTitle "playchess.com"]
[Source "ChessBase"]
[SourceQuality "1"]
[TimeControl "5400+30"]

1. e4 {[%emt 0:01:31]} c6 {[%emt 0:00:27]} 2. c4 {[%emt 0:03:36]} d5 {[%emt 0:00:10]} 3. exd5 {[%emt 0:00:05]} cxd5 {[%emt 0:00:07]} 4. cxd5 {[%emt 0:00:02]} Nf6 {[%emt 0:00:10]} 5. Nc3 {[%emt 0:00:04]} Nxd5 {[%emt 0:01:50]} 6. Nf3 {[%emt 0:00:26]} Nc6 {[%emt 0:00:40]} 7. Bb5 {[%emt 0:00:23]} e6 {[%emt 0:03:11]} 8. O-O {[%emt 0:00:26]} Be7 {[%emt 0:01:06]} 9. d4 {[%emt 0:00:23]} O-O {[%emt 0:01:31]} 10. Re1 {[%emt 0:00:42]} Bf6 {[%emt 0:01:30]} 11. Bxc6 {[%emt 0:17:10]} bxc6 {[%emt 0:07:03]} 12. Ne4 {[%emt 0:00:25]} Be7 {[%emt 0:05:41]} 13. Bg5 {[%emt 0:05:47]} Rb8 {[%emt 0:05:38]} 14. Bxe7 {[%emt 0:00:50]} Nxe7 {[%emt 0:01:10]} 15. b3 {[%emt 1:06:10]} Qd5 {[%emt 0:13:06]} 16. Rc1 {[%emt 0:00:00]} Qa5 {[%emt 0:03:57]} 17. Qd2 {[%emt 0:00:00]} Qxd2 {[%emt 0:00:55]} 18. Nexd2 {[%emt 0:00:00]} Rd8 {[%emt 0:02:04]} 19. Nc4 {[%emt 0:00:00]} Bd7 {[%emt 0:03:34]} 20. Nce5 {[%emt 0:00:00]} Be8 {[%emt 0:00:27]} 21. Rc4 {[%emt 0:00:00]} Rd5 {[%emt 0:05:46]} 22. Rec1 {[%emt 0:00:00]} Rbd8 {[%emt 0:07:17]} 23. h3 {[%emt 0:00:00]} h6 {[%emt 0:02:44]} 24. Rc5 {[%emt 0:00:00]} f6 {[%emt 0:12:34]} 25. Rxd5 {[%emt 0:00:00]} Rxd5 {[%emt 0:06:02]} 26. Ng4 {[%emt 0:00:00]} Bh5 {[%emt 0:01:45]} 27. Rc4 {[%emt 0:00:00]} Bxg4 {[%emt 0:03:18]} 28. hxg4 {[%emt 0:00:00]} Kf8 {[%emt 0:00:35]} 29. Ne1 {[%emt 0:00:00]} Ke8 {[%emt 0:01:49]} 30. Nc2 {[%emt 0:00:00]} Kd7 {[%emt 0:01:40]} 31. Ra4 {[%emt 0:00:00]} Nc8 {[%emt 0:00:56]} 32. Ne3 {[%emt 0:00:01]} Rb5 {[%emt 0:00:59]} 33. Kf1 {[%emt 0:00:07]} Rb7 {[%emt 0:00:41]} 34. Ke2 {[%emt 0:00:25]} Nb6 {[%emt 0:00:45]} 35. Ra6 {[%emt 0:00:04]} Na8 {[%emt 0:01:14]} 36. Kd3 {[%emt 0:01:46]} Nc7 {[%emt 0:00:14]} 37. Ra5 {[%emt 0:00:26]} Nb5 {[%emt 0:02:02]} 38. f3 {[%emt 0:02:45]} Nd6 {[%emt 0:00:11]} 39. Nc4 {[%emt 0:00:51]} Nc8 {[%emt 0:00:35]} 40. Nd2 {[%emt 0:01:55]} Rb5 {[%emt 0:01:57]} 41. Ra4 {[%emt 0:00:45]} Kc7 {[%emt 0:00:22]} 42. Ne4 {[%emt 0:00:31]} a5 {[%emt 0:01:00]} 43. Rc4 {[%emt 0:01:10]} Nd6 {[%emt 0:00:06]} 44. Nxd6 {[%emt 0:00:19]} Kxd6 {[%emt 0:00:01]} 45. Kc3 {[%emt 0:00:14]} h5 {[%emt 0:01:50]} 46. a4 {[%emt 0:01:50]} Rg5 {[%emt 0:01:39]} 47. gxh5 {[%emt 0:00:05]} Rxg2 {[%emt 0:00:41]} 48. Rc5 {[%emt 0:00:10]} Rf2 {[%emt 0:00:28]} 49. Rxa5 {[%emt 0:00:05]} Rxf3+ {[%emt 0:00:03]} 50. Kc4 {[%emt 0:00:04]} Rf4 {[%emt 0:00:12]} 51. Ra7 {[%emt 0:01:42]} Rg4 {[%emt 0:00:19]} 52. Kc3 {[%emt 0:00:45]} Rg5 {[%emt 0:00:15]} 53. b4 {[%emt 0:00:48]} Rxh5 {[%emt 0:00:53]} 54. Rxg7 {[%emt 0:00:02]} Rh3+ {[%emt 0:00:12]} 55. Kc4 {[%emt 0:00:34]} Ra3 {[%emt 0:00:16]} 56. a5 {[%emt 0:00:15]} f5 {[%emt 0:00:05]} 57. Rf7 {[%emt 0:00:29]} Ra1 {[%emt 0:00:23]} 58. Kb3 {[%emt 0:00:26]} Rb1+ {[%emt 0:00:44]} 59. Kc3 {[%emt 0:00:11]} Ra1 {[%emt 0:00:08]} 60. Kb2 {[%emt 0:00:13]} Ra4 {[%emt 0:00:42]} 61. Rb7 {[%emt 0:00:09]} Kd5 {[%emt 0:00:51]} 62. Kb3 {[%emt 0:00:05]} Ra1 {[%emt 0:00:05]} 63. Rd7+ {[%emt 0:00:13]} Ke4 {[%emt 0:00:02]} 64. Rd6 {[%emt 0:00:09]} f4 {[%emt 0:00:28]} 65. Rxe6+ {[%emt 0:00:27]} Kxd4 {[%emt 0:00:39]} 66. Rxc6 {[%emt 0:00:33]} f3 {[%emt 0:00:11]} 67. Rf6 {[%emt 0:00:13]} Rb1+ {[%emt 0:02:21]} 68. Ka4 {[%emt 0:00:25]} Ke3 {[%emt 0:01:03]} 69. Re6+ {[%emt 0:04:20]} Kd4 {[%emt 0:00:25]} 70. Rf6 {[%emt 0:00:13]} Ke3 {[%emt 0:00:10]} 71. a6 {[%emt 0:01:41]} Ra1+ {[%emt 0:00:58]} 72. Kb5 {[%emt 0:00:04]} f2 {[%emt 0:00:21]} 73. Kb6 {[%emt 0:00:16]} f1=Q {[%emt 0:00:33]} 74. Rxf1 {[%emt 0:00:02]} Rxf1 {[%emt 0:00:06]} 75. a7 {[%emt 0:00:45]} Rf8 {[%emt 0:01:15]} 76. b5 {[%emt 0:00:43]} Kd4 {[%emt 0:00:15]} 77. Kc6 {[%emt 0:00:24]} Rf6+ {[%emt 0:00:41]} 78. Kb7 {[%emt 0:01:14]} Rf7+ {[%emt 0:00:53]} 79. Ka6 {[%emt 0:00:17]} Rf8 {[%emt 0:01:03]} 1-0

[Event "Centenario Panaderia Pulido 2023"]
[Site "San Mateo Gran Canaria"]
[Date "2023.12.05"]
[Round "2.2"]
[White "Medina Martin, Alberto"]
[Black "Kurajica, Bojan"]
[Result "1/2-1/2"]
[ECO "E27"]
[WhiteElo "2105"]
[BlackElo "2446"]
[Annotator "RC"]
[PlyCount "83"]
[EventDate "2023.12.04"]
[EventType "swiss"]
[EventCountry "ESP"]
[SourceTitle "playchess.com"]
[Source "ChessBase"]
[SourceQuality "1"]
[TimeControl "5400+30"]

1. d4 {[%emt 0:00:04]} Nf6 {[%emt 0:00:07]} 2. c4 {[%emt 0:00:07]} e6 {[%emt 0:00:08]} 3. Nc3 {[%emt 0:00:05]} Bb4 {[%emt 0:00:09]} 4. f3 {[%emt 0:00:08]} O-O {[%emt 0:01:28]} 5. a3 {[%emt 0:00:15]} Bxc3+ {[%emt 0:00:07]} 6. bxc3 {[%emt 0:00:05]} Ne8 {[%emt 0:01:16]} 7. e4 {[%emt 0:01:35]} Nc6 {[%emt 0:00:24]} 8. Bd3 {[%emt 0:00:56]} b6 {[%emt 0:00:23]} 9. f4 {[%emt 0:01:15]} Ba6 {[%emt 0:00:51]} 10. Nf3 {[%emt 0:01:09]} Na5 {[%emt 0:02:08]} 11. e5 {[%emt 0:06:54]} f5 {[%emt 0:00:35]} 12. Qe2 {[%emt 0:00:28]} d5 {[%emt 0:05:49]} 13. Ng5 {[%emt 0:22:27]} Qc8 {[%emt 0:21:04]} 14. Qh5 {[%emt 0:05:04]} h6 {[%emt 0:00:30]} 15. h4 {[%emt 0:00:02]} Nf6 {[%emt 0:04:22]} 16. exf6 {[%emt 0:01:38]} Rxf6 {[%emt 0:00:05]} 17. Nf3 {[%emt 0:01:16]} Bxc4 {[%emt 0:03:33]} 18. Bxc4 {[%emt 0:00:11]} Nxc4 {[%emt 0:00:13]} 19. Ne5 {[%emt 0:00:32]} Nd6 {[%emt 0:03:03]} 20. Qe2 {[%emt 0:05:06]} c5 {[%emt 0:00:12]} 21. O-O {[%emt 0:00:30]} Ne4 {[%emt 0:01:04]} 22. Qd3 {[%emt 0:01:07]} c4 {[%emt 0:02:08]} 23. Qc2 {[%emt 0:00:18]} Qe8 {[%emt 0:00:34]} 24. Bd2 {[%emt 0:03:04]} Kh7 {[%emt 0:04:15]} 25. a4 {[%emt 0:02:00]} Rb8 {[%emt 0:03:09]} 26. Be1 {[%emt 0:00:59]} Rb7 {[%emt 0:00:54]} 27. Qb1 {[%emt 0:00:48]} g5 {[%emt 0:06:40]} 28. hxg5 {[%emt 0:01:47]} hxg5 {[%emt 0:00:05]} 29. fxg5 {[%emt 0:00:09]} Nxg5 {[%emt 0:00:04]} 30. Bh4 {[%emt 0:00:47]} Qh5 {[%emt 0:01:07]} 31. Bxg5 {[%emt 0:00:10]} Qxg5 {[%emt 0:00:05]} 32. Qc1 {[%emt 0:01:18]} f4 {[%emt 0:00:14]} 33. Rf3 {[%emt 0:00:57]} Rg7 {[%emt 0:00:33]} 34. Ra2 {[%emt 0:01:23]} Qh4 {[%emt 0:01:16]} 35. Qc2+ {[%emt 0:03:10]} Kg8 {[%emt 0:00:59]} 36. Qf2 {[%emt 0:00:14]} Qh7 {[%emt 0:06:16]} 37. Qc2 {[%emt 0:10:56]} Qh4 {[%emt 0:02:35]} 38. Qf2 {[%emt 0:04:34]} Qh7 {[%emt 0:00:18]} 39. Qc2 {[%emt 0:01:51]} Qh5 {[%emt 0:31:17]} 40. Qf2 {[%emt 0:25:11]} Rg3 {[%emt 0:00:30]} 41. Kf1 {[%emt 0:00:30]} Qh4 42. Qc2 {[%emt 0:00:30]} 1/2-1/2

[Event "Centenario Panaderia Pulido 2023"]
[Site "San Mateo Gran Canaria"]
[Date "2023.12.05"]
[Round "2.3"]
[White "Strikovic, Aleksa"]
[Black "Bergero, Simone"]
[Result "1-0"]
[ECO "A28"]
[WhiteElo "2455"]
[BlackElo "2010"]
[Annotator "RC"]
[PlyCount "53"]
[EventDate "2023.12.04"]
[EventType "swiss"]
[EventCountry "ESP"]
[SourceTitle "playchess.com"]
[Source "ChessBase"]
[SourceQuality "1"]
[TimeControl "5400+30"]

1. c4 {[%emt 0:00:03]} e5 {[%emt 0:08:01]} 2. Nc3 {[%emt 0:00:44]} Bb4 {[%emt 0:00:14]} 3. Qc2 {[%emt 0:00:09]} Nf6 {[%emt 0:02:26]} 4. Nf3 {[%emt 0:00:06]} Nc6 {[%emt 0:02:08]} 5. e3 {[%emt 0:00:06]} O-O {[%emt 0:02:21]} 6. Nd5 {[%emt 0:00:48]} Re8 {[%emt 0:03:40]} 7. Qf5 {[%emt 0:01:37]} d6 {[%emt 0:04:32]} 8. Nxf6+ {[%emt 0:00:16]} Qxf6 {[%emt 0:00:04]} 9. Qxf6 {[%emt 0:00:08]} gxf6 {[%emt 0:00:04]} 10. a3 {[%emt 0:00:07]} Ba5 {[%emt 0:00:25]} 11. b4 {[%emt 0:00:08]} Bb6 {[%emt 0:00:05]} 12. Bb2 {[%emt 0:00:07]} a5 {[%emt 0:02:42]} 13. b5 {[%emt 0:00:07]} Ne7 {[%emt 0:00:05]} 14. d4 {[%emt 0:00:05]} Ng6 {[%emt 0:07:18]} 15. O-O-O {[%emt 0:14:47]} Bf5 {[%emt 0:09:46]} 16. h4 {[%emt 0:03:35]} Bg4 {[%emt 0:06:29]} 17. h5 {[%emt 0:01:27]} Ne7 {[%emt 0:00:05]} 18. Rh4 {[%emt 0:08:27]} Be6 {[%emt 0:05:17]} 19. c5 {[%emt 0:00:22]} dxc5 {[%emt 0:01:05]} 20. dxe5 {[%emt 0:00:14]} Rad8 {[%emt 0:05:10]} 21. Rxd8 {[%emt 0:02:13]} Rxd8 {[%emt 0:00:05]} 22. exf6 {[%emt 0:00:09]} Nf5 {[%emt 0:01:15]} 23. Rg4+ {[%emt 0:05:20]} Kh8 {[%emt 0:38:43]} 24. Re4 {[%emt 1:01:25]} h6 {[%emt 0:00:00]} 25. Rxe6 fxe6 {[%emt 0:01:00]} 26. g4 {[%emt 0:01:00]} Nd6 {[%emt 0:00:00]} 27. f7+ {[%emt 0:00:00]} 1-0

[Event "Centenario Panaderia Pulido 2023"]
[Site "San Mateo Gran Canaria"]
[Date "2023.12.05"]
[Round "2.4"]
[White "Camino Carrio, Nicanor"]
[Black "Larino Nieto, David"]
[Result "0-1"]
[ECO "B01"]
[WhiteElo "1948"]
[BlackElo "2366"]
[Annotator "RC"]
[PlyCount "38"]
[EventDate "2023.12.04"]
[EventType "swiss"]
[EventCountry "ESP"]
[SourceTitle "playchess.com"]
[Source "ChessBase"]
[SourceQuality "1"]
[TimeControl "5400+30"]

1. e4 {[%emt 0:00:30]} d5 {[%emt 0:07:03]} 2. exd5 {[%emt 0:00:57]} Qxd5 {[%emt 0:00:02]} 3. Nc3 {[%emt 0:00:13]} Qa5 {[%emt 0:00:02]} 4. d4 {[%emt 0:00:16]} Nf6 {[%emt 0:00:02]} 5. Bd2 {[%emt 0:00:29]} Nc6 {[%emt 0:03:00]} 6. Bb5 {[%emt 0:00:27]} Kd8 {[%emt 0:11:32]} 7. Qe2 {[%emt 0:05:56]} a6 {[%emt 0:01:58]} 8. Bc4 {[%emt 0:02:13]} Bg4 {[%emt 0:09:45]} 9. f3 {[%emt 0:00:21]} Bf5 {[%emt 0:01:26]} 10. O-O-O {[%emt 0:00:37]} Bxc2 {[%emt 0:03:54]} 11. Re1 {[%emt 0:04:57]} Nxd4 {[%emt 0:04:57]} 12. Qf2 {[%emt 0:01:09]} e5 {[%emt 0:00:30]} 13. Nge2 {[%emt 0:01:01]} Qc5 {[%emt 0:03:24]} 14. Nxd4 {[%emt 0:02:15]} exd4 {[%emt 0:00:10]} 15. Qe2 {[%emt 0:01:37]} Bg6 {[%emt 0:01:51]} 16. b4 {[%emt 0:20:57]} Qc6 {[%emt 0:01:27]} 17. Rd1 {[%emt 0:07:20]} Bxb4 {[%emt 0:00:22]} 18. Kb2 {[%emt 0:00:42]} dxc3+ {[%emt 0:00:57]} 19. Bxc3+ {[%emt 0:00:19]} Bd6 {[%emt 0:00:03]} 0-1

[Event "Centenario Panaderia Pulido 2023"]
[Site "San Mateo Gran Canaria"]
[Date "2023.12.05"]
[Round "2.5"]
[White "Yao, Stefano"]
[Black "Almenares Garcia, Mario Adrian"]
[Result "1-0"]
[ECO "B38"]
[WhiteElo "2288"]
[BlackElo "2000"]
[Annotator "RC"]
[PlyCount "109"]
[EventDate "2023.12.04"]
[EventType "swiss"]
[EventCountry "ESP"]
[SourceTitle "playchess.com"]
[Source "ChessBase"]
[SourceQuality "1"]
[TimeControl "5400+30"]

1. d4 {[%emt 0:06:24]} Nf6 {[%emt 0:02:39]} 2. Nf3 {[%emt 0:00:07]} g6 {[%emt 0:00:32]} 3. c4 {[%emt 0:01:04]} c5 {[%emt 0:00:07]} 4. Nc3 {[%emt 0:00:16]} Bg7 {[%emt 0:00:08]} 5. e4 {[%emt 0:00:10]} cxd4 {[%emt 0:00:54]} 6. Nxd4 {[%emt 0:00:08]} d6 {[%emt 0:00:27]} 7. Be2 {[%emt 0:00:14]} O-O {[%emt 0:00:09]} 8. O-O {[%emt 0:00:04]} Nc6 {[%emt 0:01:09]} 9. Be3 {[%emt 0:00:06]} Bd7 {[%emt 0:00:39]} 10. h3 {[%emt 0:01:35]} a6 {[%emt 0:00:31]} 11. Nb3 {[%emt 0:06:35]} Rc8 {[%emt 0:00:29]} 12. c5 {[%emt 0:04:21]} Ne8 {[%emt 0:01:20]} 13. Rc1 {[%emt 0:05:06]} Be6 {[%emt 0:00:20]} 14. cxd6 {[%emt 0:08:13]} Nxd6 {[%emt 0:01:47]} 15. Nc5 {[%emt 0:11:33]} Nc4 {[%emt 0:05:12]} 16. Nxe6 {[%emt 0:11:16]} Qxd1 {[%emt 0:00:10]} 17. Nxd1 {[%emt 0:07:31]} Nxe3 {[%emt 0:00:11]} 18. Nxf8 {[%emt 0:02:49]} Nxf1 {[%emt 0:00:10]} 19. Nxg6 {[%emt 0:04:15]} hxg6 {[%emt 0:00:15]} 20. Kxf1 {[%emt 0:00:06]} Rd8 {[%emt 0:00:07]} 21. Ne3 {[%emt 0:02:52]} Rd2 {[%emt 0:03:52]} 22. Nc4 {[%emt 0:04:05]} Rd4 {[%emt 0:03:18]} 23. f3 {[%emt 0:08:25]} b5 {[%emt 0:11:33]} 24. Ne3 {[%emt 0:01:07]} Nb4 {[%emt 0:00:20]} 25. a3 {[%emt 0:06:22]} Nd3 {[%emt 0:00:42]} 26. Rc8+ {[%emt 0:00:35]} Bf8 {[%emt 0:01:44]} 27. Nc2 {[%emt 0:02:25]} Rd6 {[%emt 0:00:27]} 28. Bxd3 {[%emt 0:00:29]} Rxd3 {[%emt 0:00:13]} 29. Nb4 {[%emt 0:00:21]} Rd2 {[%emt 0:03:16]} 30. Rc2 {[%emt 0:00:58]} Rd6 {[%emt 0:01:39]} 31. Ke2 {[%emt 0:00:14]} Bh6 {[%emt 0:00:29]} 32. Nd3 {[%emt 0:00:34]} e6 {[%emt 0:01:11]} 33. h4 {[%emt 0:01:04]} Rd4 {[%emt 0:07:32]} 34. Rc6 {[%emt 0:01:06]} a5 {[%emt 0:01:05]} 35. Rc5 {[%emt 0:01:25]} Rc4 {[%emt 0:01:35]} 36. Rxc4 {[%emt 0:00:26]} bxc4 {[%emt 0:00:13]} 37. Ne5 {[%emt 0:00:04]} c3 {[%emt 0:00:18]} 38. bxc3 {[%emt 0:00:04]} a4 {[%emt 0:01:15]} 39. Nd3 {[%emt 0:00:26]} Bf8 {[%emt 0:00:20]} 40. Nb4 {[%emt 0:00:33]} Bd6 {[%emt 0:00:39]} 41. Kd3 {[%emt 0:00:26]} Kg7 {[%emt 0:00:53]} 42. Kc4 {[%emt 0:00:15]} Kh6 {[%emt 0:00:29]} 43. g4 {[%emt 0:00:56]} Bg3 {[%emt 0:00:10]} 44. Kb5 {[%emt 0:00:31]} Bxh4 {[%emt 0:00:22]} 45. c4 {[%emt 0:00:13]} Be7 {[%emt 0:00:56]} 46. c5 {[%emt 0:00:06]} Kg5 {[%emt 0:00:12]} 47. Nd3 {[%emt 0:00:22]} Kh4 {[%emt 0:00:28]} 48. Ne5 {[%emt 0:01:00]} Kg3 {[%emt 0:01:17]} 49. Nxf7 {[%emt 0:00:17]} Bxc5 {[%emt 0:00:27]} 50. Kxc5 {[%emt 0:00:05]} Kxf3 {[%emt 0:00:07]} 51. e5 {[%emt 0:00:28]} Kxg4 {[%emt 0:00:09]} 52. Kd6 {[%emt 0:00:14]} Kf5 {[%emt 0:00:13]} 53. Nh6+ {[%emt 0:00:21]} Kg5 {[%emt 0:00:12]} 54. Kxe6 {[%emt 0:00:26]} Kxh6 {[%emt 0:00:09]} 55. Kf6 {[%emt 0:00:03]} 1-0

[Event "Centenario Panaderia Pulido 2023"]
[Site "San Mateo Gran Canaria"]
[Date "2023.12.05"]
[Round "2.6"]
[White "Garbezza, Davide"]
[Black "Hernando Rodrigo, Jose Maria"]
[Result "0-1"]
[ECO "A07"]
[WhiteElo "1860"]
[BlackElo "2278"]
[Annotator "RC"]
[PlyCount "62"]
[EventDate "2023.12.04"]
[EventType "swiss"]
[EventCountry "ESP"]
[SourceTitle "playchess.com"]
[Source "ChessBase"]
[SourceQuality "1"]
[TimeControl "5400+30"]

1. Nf3 {[%emt 0:07:34]} Nf6 {[%emt 0:00:46]} 2. b3 {[%emt 0:00:09]} d5 {[%emt 0:01:13]} 3. Bb2 {[%emt 0:00:07]} Bf5 {[%emt 0:00:23]} 4. d3 {[%emt 0:01:04]} e6 {[%emt 0:02:14]} 5. g3 {[%emt 0:01:14]} Be7 {[%emt 0:01:45]} 6. Bg2 {[%emt 0:00:20]} O-O {[%emt 0:00:07]} 7. O-O {[%emt 0:00:07]} h6 {[%emt 0:00:59]} 8. Nbd2 {[%emt 0:00:13]} c5 {[%emt 0:00:26]} 9. Re1 {[%emt 0:01:06]} Nc6 {[%emt 0:00:59]} 10. e4 {[%emt 0:01:02]} Bg6 {[%emt 0:02:03]} 11. a3 {[%emt 0:07:28]} Qc7 {[%emt 0:05:12]} 12. Qe2 {[%emt 0:04:27]} Rfd8 {[%emt 0:01:49]} 13. exd5 {[%emt 0:17:53]} Nxd5 {[%emt 0:00:47]} 14. Ne5 {[%emt 0:06:14]} Bf6 {[%emt 0:08:12]} 15. Nxc6 {[%emt 0:06:23]} Bxb2 {[%emt 0:01:20]} 16. Nxd8 {[%emt 0:00:15]} Rxd8 {[%emt 0:00:40]} 17. Nc4 {[%emt 0:02:24]} Bxa1 {[%emt 0:06:01]} 18. Rxa1 {[%emt 0:00:02]} Bf5 {[%emt 0:15:33]} 19. Re1 {[%emt 0:07:37]} b5 {[%emt 0:08:33]} 20. Ne3 {[%emt 0:01:23]} Nxe3 {[%emt 0:01:41]} 21. Qxe3 {[%emt 0:00:18]} Qa5 {[%emt 0:01:01]} 22. Qe5 {[%emt 0:11:53]} Qxa3 {[%emt 0:12:40]} 23. Ra1 {[%emt 0:02:28]} Qb4 {[%emt 0:00:15]} 24. Qc7 {[%emt 0:03:13]} Rf8 {[%emt 0:00:28]} 25. Qxa7 {[%emt 0:01:28]} Qc3 {[%emt 0:00:22]} 26. Qa2 {[%emt 0:03:07]} c4 {[%emt 0:06:11]} 27. bxc4 {[%emt 0:03:49]} bxc4 {[%emt 0:00:05]} 28. Be4 {[%emt 0:01:06]} Bxe4 {[%emt 0:01:17]} 29. dxe4 {[%emt 0:00:02]} Rd8 {[%emt 0:00:02]} 30. Qb1 {[%emt 0:07:19]} Rd2 {[%emt 0:01:53]} 31. Ra2 {[%emt 0:01:16]} Qf3 {[%emt 0:21:03]} 0-1